bitfinex-derivatives/quotes_ETHF0:USTF0_20241022
["timestamp","ask_amount","ask_price","bid_price","bid_amount"]
[1729628823505,0.38009,2632.1,2632.0,1.83225424]
[1729628823710,0.38009,2632.1,2632.0,0.46225424]
[1729628823909,1.75009,2632.1,2632.0,0.46225424]
[1729628824204,1.75009,2632.1,2632.0,1.83225424]
[1729628824508,0.38009,2632.1,2632.0,1.83225424]
[1729628825115,1.75009,2632.1,2632.0,1.83225424]
[1729628826811,2.42170145,2632.2,2632.0,1.83225424]
[1729628827717,0.38009,2632.1,2632.0,1.83225424]
[1729628828613,1.75009,2632.1,2632.0,1.83225424]
[1729628828805,1.75009,2632.1,2632.0,0.46225424]
[1729628831606,1.75009,2632.1,2631.9,4.5778]
[1729628831607,0.38011,2632.0,2631.9,3.2078]
[1729628831808,1.37,2632.0,2631.5,3.2078]
[1729628832007,1.37,2631.6,2631.5,4.5778]
[1729628832211,1.75015,2631.7,2631.5,4.5778]
[1729628832406,1.37,2631.7,2631.5,4.5778]
[1729628832716,0.38016,2631.6,2631.5,4.5778]
[1729628833211,1.75016,2631.6,2631.5,4.5778]
[1729628833710,1.75016,2631.6,2631.5,3.2078]
[1729628836315,1.37,2631.6,2631.5,3.2078]
[1729628836516,1.75016,2631.6,2631.5,4.5778]
[1729628837607,1.75016,2631.6,2631.5,1.37]
[1729628839220,1.75016,2631.6,2631.5,0.4663524]
[1729628843024,1.37,2631.6,2631.5,0.4663524]
[1729628843227,1.75016,2631.6,2631.5,0.4663524]
[1729628844623,1.37,2631.6,2631.5,0.8465324]
[1729628844828,1.75016,2631.6,2631.5,0.4663524]
[1729628846932,1.37,2631.6,2631.5,0.4663524]
[1729628847233,1.37,2631.6,2631.5,0.8465224]
[1729628847427,1.75016,2631.6,2631.5,0.4663524]
[1729628848435,1.37,2631.6,2631.5,0.8465324]
[1729628848727,1.37,2631.6,2631.5,0.4663524]
[1729628848934,1.75016,2631.6,2631.5,0.4663524]
[1729628851931,1.75016,2631.6,2631.5,1.2854524]
[1729628859041,1.75016,2631.6,2631.5,2.1891]
[1729628859427,1.75016,2631.6,2631.5,1.83220111]
[1729628861134,1.75016,2631.6,2631.5,0.46220111]
[1729628864241,1.75016,2631.6,2631.5,0.27220111]
[1729628864640,1.94493183,2631.6,2631.5,0.27220111]
[1729628870246,6.73477183,2631.6,2631.1,1.18025172]
[1729628870447,1.75022,2631.2,2631.1,1.18025172]
[1729628870648,1.37,2631.2,2631.1,1.18025172]
[1729628870844,2.59072,2631.2,2631.1,1.99015172]
[1729628871249,2.77677412,2631.2,2631.1,1.99015172]
[1729628871455,2.39655412,2631.2,2631.1,1.99015172]
[1729628871653,2.77677412,2631.2,2631.1,1.99015172]
[1729628881258,0.18605412,2631.2,2631.1,7.54119172]
[1729628881457,1.7502,2631.4,2631.1,7.54119172]
[1729628881754,1.37,2631.3,2631.2,1.97932]
[1729628881952,0.1948388,2631.4,2631.3,0.38021]
[1729628882158,1.5648388,2631.4,2631.2,1.5991]
[1729628882354,1.37,2631.3,2631.2,1.5991]
[1729628882952,1.37,2631.3,2631.2,2.9691]
[1729628883166,1.37,2631.3,2631.2,3.34932]
[1729628886059,1.75021,2631.3,2631.2,3.34932]
[1729628886249,1.75021,2631.3,2631.2,1.97932]
[1729628887256,1.37,2631.3,2631.2,1.97932]
[1729628888259,1.75021,2631.3,2631.2,1.97932]
[1729628890655,1.75021,2631.3,2631.2,1.5991]
[1729628890858,1.75021,2631.3,2631.1,1.18025172]
[1729628890859,0.38022,2631.2,2631.1,1.18025172]
[1729628891163,2.53132,2631.2,2631.1,1.18025172]
[1729628893560,0.7811,2631.2,2631.1,1.18025172]
[1729628893760,1.5648388,2631.4,2631.3,0.38021]
[1729628893955,1.5648388,2631.4,2631.3,1.75021]
[1729628894567,1.5648388,2631.4,2631.3,2.58891]
[1729628904565,0.1948388,2631.4,2631.3,6.38891]
[1729628907077,0.1948388,2631.4,2631.3,2.58891]
[1729628913573,0.1948388,2631.4,2631.3,5.79671]
[1729628915680,0.1948388,2631.4,2631.3,2.58891]
[1729628916280,0.1948388,2631.4,2631.3,5.79671]
[1729628916778,0.1948388,2631.4,2631.3,2.58891]
[1729628916968,0.1948388,2631.4,2631.3,5.79671]
[1729628917379,0.1948388,2631.4,2631.3,2.58891]
[1729628917678,0.1948388,2631.4,2631.3,5.79671]
[1729628918883,0.1948388,2631.4,2631.3,2.58891]
[1729628919184,0.1948388,2631.4,2631.3,5.79671]
[1729628922689,0.1948388,2631.4,2631.3,2.58891]
[1729628923181,0.1948388,2631.4,2631.3,5.79671]
[1729628926673,0.1948388,2631.4,2631.3,2.58891]
[1729628926878,0.1948388,2631.4,2631.3,5.79671]
[1729628929490,0.1948388,2631.4,2631.3,2.58891]
[1729628930889,0.9360388,2631.4,2631.3,2.58891]
[1729628936986,0.9360388,2631.4,2631.3,5.79671]
[1729628937689,0.9360388,2631.4,2631.3,2.58891]
[1729628937898,0.9360388,2631.4,2631.3,5.79671]
[1729628940501,1.3162288,2631.4,2631.3,5.79671]
[1729628940789,2.6862288,2631.4,2631.3,3.58801]
[1729628941087,0.38022,2631.3,2631.2,0.38021]
[1729628941293,1.75021,2631.3,2631.2,0.38021]
[1729628943191,1.37,2631.3,2631.2,0.38021]
[1729628943595,1.75021,2631.3,2631.2,0.38021]
[1729628945702,1.37,2631.3,2631.2,0.38021]
[1729628948690,1.37,2631.3,2631.2,3.58802]
[1729628949792,1.37,2631.3,2631.2,0.38022]
[1729628950000,1.37,2631.3,2631.2,3.58802]
[1729628952295,1.37,2631.3,2631.2,0.38022]
[1729628956390,1.37,2631.3,2631.2,1.75022]
[1729628956795,1.37,2631.3,2631.2,2.52732]
[1729628957200,1.75021,2631.3,2631.2,0.38022]
[1729628957405,5.55101,2631.3,2631.2,0.38022]
[1729628958204,5.1708,2631.3,2631.2,0.38022]
[1729628960803,1.37,2631.3,2631.2,0.38022]
[1729628961504,0.9360388,2631.4,2631.3,0.38021]
[1729628961703,0.9360388,2631.4,2631.3,1.75021]
[1729628961896,0.9360388,2631.4,2631.3,2.47271]
[1729628963701,0.9360388,2631.4,2631.3,5.68051]
[1729628963902,0.1948388,2631.4,2631.3,5.68051]
[1729628969002,1.5648388,2631.4,2631.3,5.68051]
[1729628972308,1.5648388,2631.4,2631.3,2.47271]
[1729628974812,0.1948388,2631.4,2631.3,2.47271]
[1729628977106,0.1948388,2631.4,2631.3,5.68051]
[1729628987219,0.1948388,2631.4,2631.3,2.47271]
[1729628987611,0.1948388,2631.4,2631.3,5.68051]
[1729628989622,0.1948388,2631.4,2631.3,2.47271]
[1729628989816,0.1948388,2631.4,2631.3,5.68051]
[1729628992417,0.1948388,2631.4,2631.3,2.47271]
[1729628992625,0.1948388,2631.4,2631.3,5.68051]
[1729628994622,0.1948388,2631.4,2631.3,4.31051]
[1729628999524,0.1948388,2631.4,2631.3,1.10271]
[1729629003132,0.1948388,2631.4,2631.3,2.47271]
[1729629003432,1.37,2631.7,2631.3,2.47271]
[1729629003631,0.7575,2631.8,2631.5,3.2078]
[1729629003832,1.75016,2631.6,2631.5,3.58797]
[1729629004038,1.75016,2631.6,2631.5,0.38017]
[1729629005632,1.37,2631.6,2631.5,0.38017]
[1729629007035,1.75016,2631.6,2631.5,0.38017]
[1729629007435,1.37,2631.6,2631.5,0.38017]
[1729629007935,2.0774,2631.7,2631.6,0.38016]
[1729629008236,0.7074,2631.7,2631.6,0.38016]
[1729629008437,2.0774,2631.7,2631.6,1.75016]
[1729629008631,2.0774,2631.7,2631.6,0.38016]
[1729629009039,2.45755,2631.7,2631.6,0.38016]
[1729629009240,2.45755,2631.7,2631.6,1.06506]
[1729629009430,2.0774,2631.7,2631.6,1.06506]
[1729629010439,2.45755,2631.7,2631.6,1.06506]
[1729629010640,2.0774,2631.7,2631.6,1.06506]
[1729629011527,2.0774,2631.7,2631.6,1.80126]
[1729629013147,2.0774,2631.7,2631.6,3.17126]
[1729629017149,1.37,2631.7,2631.6,3.17126]
[1729629023756,0.38016,2631.6,2631.5,3.58797]
[1729629023957,3.13086,2631.6,2631.5,0.38017]
[1729629024159,2.7507,2631.6,2631.4,0.7242]
[1729629024362,0.3802,2631.4,2631.3,0.3802]
[1729629024559,1.7502,2631.4,2631.3,0.3802]
[1729629025658,1.75019,2631.4,2631.3,0.3802]
[1729629026363,1.37,2631.4,2631.3,0.3802]
[1729629026569,1.37,2631.4,2631.3,1.75021]
[1729629035069,0.7123,2631.6,2631.3,1.37]
[1729629035263,0.7123,2631.6,2631.5,4.95798]
[1729629035462,2.0823,2631.6,2631.5,4.95798]
[1729629035669,2.0823,2631.6,2631.5,5.68688]
[1729629035966,2.0823,2631.6,2631.5,4.31688]
[1729629036566,0.7123,2631.6,2631.5,5.68688]
[1729629037875,2.0823,2631.6,2631.5,4.31688]
[1729629038474,2.0823,2631.6,2631.5,1.10908]
[1729629041778,0.38019,2631.5,2631.4,0.38018]
[1729629042081,2.46379,2631.5,2631.4,0.38018]
[1729629042778,2.0836,2631.5,2631.4,0.38018]
[1729629043082,1.09247,2631.6,2631.5,0.38018]
[1729629043583,1.09247,2631.6,2631.5,1.11628]
[1729629043880,0.7123,2631.6,2631.5,2.48628]
[1729629044873,0.7123,2631.6,2631.5,1.11628]
[1729629047477,2.0823,2631.6,2631.5,1.11628]
[1729629049081,2.46246,2631.6,2631.5,1.11628]
[1729629049381,2.0823,2631.6,2631.5,1.11628]
[1729629050176,0.38019,2631.5,2631.3,3.58799]
[1729629050384,1.75019,2631.5,2631.3,4.30109]
[1729629051078,1.75019,2631.5,2631.4,0.38019]
[1729629052577,1.37,2631.5,2631.4,0.38019]
[1729629052879,1.09247,2631.6,2631.5,0.38018]
[1729629053181,2.0823,2631.6,2631.5,0.38018]
[1729629053483,2.46246,2631.6,2631.5,0.38018]
[1729629053670,2.0823,2631.6,2631.5,0.38018]
[1729629054080,1.75014,2631.8,2631.7,0.38014]
[1729629055483,0.38014,2631.8,2631.7,0.38014]
[1729629055785,0.38013,2631.8,2631.7,1.75014]
[1729629055984,1.75013,2631.8,2631.7,1.75014]
[1729629056776,1.37,2631.8,2631.7,1.75014]
[1729629061190,1.75013,2631.8,2631.7,1.75014]
[1729629061487,1.75013,2631.8,2631.7,0.38014]
[1729629061688,1.37,2631.8,2631.7,0.38014]
[1729629062387,1.75013,2631.8,2631.7,0.38014]
[1729629063285,1.37,2631.8,2631.7,0.38014]
[1729629064284,1.75013,2631.8,2631.7,0.38014]
[1729629065978,1.37,2631.8,2631.7,0.38014]
[1729629066292,0.86234898,2631.9,2631.8,0.38013]
[1729629066293,2.23234898,2631.9,2631.8,0.38013]
[1729629067179,0.18654898,2631.9,2631.8,4.95793]
[1729629067384,1.37,2632.0,2631.8,4.5778]
[1729629067589,1.56412783,2632.0,2631.9,0.38012]
[1729629067792,1.56412783,2632.0,2631.9,1.05792]
[1729629069682,1.94423783,2632.0,2631.9,1.05792]
[1729629070594,1.56412783,2632.0,2631.9,1.05792]
[1729629071589,1.94423783,2632.0,2631.9,1.05792]
[1729629072794,1.56412783,2632.0,2631.9,1.05792]
[1729629072996,1.94423783,2632.0,2631.9,1.05792]
[1729629073185,1.56412783,2632.0,2631.9,1.05792]
[1729629074687,1.94423783,2632.0,2631.9,1.05792]
[1729629075994,1.56412783,2632.0,2631.9,1.05792]
[1729629077191,1.94423783,2632.0,2631.9,1.05792]
[1729629077890,1.56412783,2632.0,2631.9,1.05792]
[1729629078089,1.94423783,2632.0,2631.9,1.05792]
[1729629078691,1.56412783,2632.0,2631.9,1.05792]
[1729629079098,1.94423783,2632.0,2631.9,1.05792]
[1729629084613,1.56412783,2632.0,2631.9,1.05792]
[1729629085211,0.19412783,2632.0,2631.9,1.05792]
[1729629085414,1.3724,2632.3,2632.0,0.95025]
[1729629085415,1.37,2632.3,2632.0,0.95025]
[1729629085617,1.37,2632.3,2632.2,0.38008]
[1729629085817,1.37,2632.3,2632.2,1.75008]
[1729629086016,1.37,2632.3,2632.2,2.40468]
[1729629086217,1.55593846,2632.3,2632.2,2.40468]
[1729629089317,0.18593846,2632.3,2632.2,6.20388]
[1729629089521,2.0352,2632.6,2632.5,0.38003]
[1729629089722,0.19474737,2632.6,2632.5,4.95783]
[1729629089923,1.37,2632.6,2632.5,4.95783]
[1729629090218,1.55993386,2632.6,2632.5,4.95783]
[1729629094129,0.18993386,2632.6,2632.5,4.95783]
[1729629094424,2.0467,2632.8,2632.7,0.38]
[1729629094627,2.23529742,2632.8,2632.7,1.75]
[1729629094827,0.18859742,2632.8,2632.7,1.75]
[1729629095125,3.9222,2633.2,2632.7,1.37]
[1729629095126,0.6983,2633.0,2632.7,1.37]
[1729629095324,1.89901,2634.2,2632.7,1.37]
[1729629095325,1.74989,2633.5,2632.9,4.5778]
[1729629095623,0.6983,2633.4,2633.3,0.3799]
[1729629095833,1.56190681,2633.5,2633.2,3.2078]
[1729629096126,1.56190681,2633.5,2633.4,1.7499]
[1729629096421,0.19190681,2633.5,2633.4,1.7499]
[1729629096623,0.6983,2633.7,2633.4,1.37]
[1729629096818,0.6983,2633.7,2633.6,4.95767]
[1729629097018,2.25988574,2633.7,2633.6,4.95767]
[1729629097220,2.25988574,2633.7,2633.6,5.2723]
[1729629097421,2.63974574,2633.7,2633.6,5.2723]
[1729629097718,2.63974574,2633.7,2633.6,3.9023]
[1729629098331,2.63974574,2633.7,2633.6,3.2078]
[1729629099317,2.63974574,2633.7,2633.3,3.2078]
[1729629099318,3.62988574,2633.7,2633.3,3.2078]
[1729629099523,0.37993,2633.3,2633.1,1.355]
[1729629099830,2.41473,2633.2,2633.1,2.725]
[1729629100222,2.0348,2633.2,2633.1,2.725]
[1729629100427,2.0348,2633.2,2633.1,3.10495]
[1729629100725,2.41473,2633.2,2633.1,3.10495]
[1729629101229,2.0348,2633.2,2633.1,3.10495]
[1729629101626,1.74991,2633.4,2633.1,2.725]
[1729629101823,2.41471,2633.4,2633.3,1.37]
[1729629102028,2.41471,2633.4,2633.3,1.74992]
[1729629102332,2.41471,2633.4,2633.3,4.5778]
[1729629102732,2.41471,2633.4,2633.3,4.95772]
[1729629103030,2.41471,2633.4,2633.3,3.58772]
[1729629104038,2.41471,2633.4,2633.3,0.37992]
[1729629105032,2.41471,2633.4,2633.2,1.74992]
[1729629105636,2.41471,2633.4,2633.3,0.37992]
[1729629111143,2.0348,2633.4,2633.3,0.37992]
[1729629111347,0.6648,2633.4,2633.3,1.74992]
[1729629111840,0.37988,2633.6,2633.3,5.1676]
[1729629112146,0.37988,2633.6,2633.4,1.01059]
[1729629112147,1.938,2633.6,2633.4,1.01059]
[1729629112340,2.31787,2633.6,2633.5,0.5719]
[1729629121457,2.91887,2633.6,2633.5,0.5719]
[1729629121957,2.539,2633.6,2633.4,0.6307]
[1729629122259,1.74989,2633.5,2633.4,0.6307]
[1729629124959,1.74989,2633.5,2633.4,1.0106]
[1729629124960,1.37,2633.5,2633.4,1.0106]
[1729629125555,1.74989,2633.5,2633.4,1.0106]
[1729629126058,1.74989,2633.5,2633.4,0.6307]
[1729629132968,1.74989,2633.5,2633.4,4.42807221]
[1729629134665,3.7976,2633.4,2632.5,3.2078]
[1729629134873,1.37,2632.8,2632.7,0.38]
[1729629135167,1.74999,2632.8,2632.7,0.38]
[1729629135372,1.37,2632.8,2632.7,0.38]
[1729629135558,1.37,2632.8,2632.7,1.75]
[1729629137265,1.37,2633.1,2632.7,5.1684]
[1729629137466,0.37998,2632.9,2632.8,2.26919]
[1729629138666,1.37,2633.0,2632.8,1.8892]
[1729629138868,1.74997,2633.0,2632.9,0.91808]
[1729629139271,1.74994,2633.2,2632.9,1.9081]
[1729629139469,1.37,2633.1,2633.0,0.88575]
[1729629139682,1.74995,2633.1,2633.0,0.88575]
[1729629140373,1.74995,2633.1,2633.0,0.5058]
[1729629152278,2.25942974,2633.1,2633.0,0.5058]
[1729629156976,1.74995,2633.1,2633.0,0.5058]
[1729629157379,1.37,2633.1,2632.9,0.5381]
[1729629157583,5.1676,2633.0,2632.3,1.8878]
[1729629157876,0.1629,2633.1,2632.3,1.8878]
[1729629157877,0.37999,2632.8,2632.7,0.5506]
[1729629158582,0.37999,2632.8,2632.7,1.0684]
[1729629159180,1.74999,2632.8,2632.7,1.0684]
[1729629160586,1.74999,2632.8,2632.7,1.4484]
[1729629161481,1.74999,2632.8,2632.7,1.0684]
[1729629164083,1.74999,2632.8,2632.7,1.4484]
[1729629164283,1.74999,2632.8,2632.7,1.0684]
[1729629167490,0.37999,2632.8,2632.7,1.0684]
[1729629167692,1.74999,2632.8,2632.7,1.4484]
[1729629167890,1.37,2633.0,2632.8,0.37999]
[1729629168092,1.74997,2633.0,2632.9,0.87188]
[1729629168394,1.37,2633.0,2632.9,0.87188]
[1729629169088,1.74996,2633.0,2632.9,0.87188]
[1729629169785,1.37,2633.0,2632.9,0.87188]
[1729629170194,1.74996,2633.0,2632.9,0.87188]
[1729629170590,1.37,2633.0,2632.9,0.4919]
[1729629170795,1.37,2633.0,2632.9,0.87187]
[1729629171189,1.74996,2633.0,2632.9,0.87187]
[1729629171789,1.74996,2633.0,2632.9,0.4919]
[1729629172294,1.37,2633.0,2632.9,0.4919]
[1729629172592,1.37,2633.0,2632.9,0.87188]
[1729629173389,1.74996,2633.0,2632.9,0.87188]
[1729629173600,0.37996,2633.0,2632.9,0.87188]
[1729629173799,1.74996,2633.0,2632.9,0.87188]
[1729629174293,1.74996,2633.0,2632.9,0.4919]
[1729629174995,1.74996,2633.0,2632.9,0.87188]
[1729629176404,1.74996,2633.0,2632.9,0.4919]
[1729629177401,1.74996,2633.0,2632.9,0.87188]
[1729629177798,1.37,2633.0,2632.9,0.87188]
[1729629177994,1.37,2633.1,2633.0,0.37996]
[1729629178200,1.37,2633.1,2633.0,1.37]
[1729629178501,1.74996,2633.1,2633.0,1.74996]
[1729629179703,3.2078,2633.3,2633.0,1.37]
[1729629179900,0.37994,2633.2,2633.1,0.9397]
[1729629180201,1.74994,2633.2,2633.1,0.9397]
[1729629184601,1.74994,2633.2,2633.1,1.31965]
[1729629184906,1.74994,2633.2,2633.1,2.68965]
[1729629185307,1.74994,2633.2,2633.1,2.3097]
[1729629185796,1.37,2633.2,2633.1,2.68965]
[1729629186501,1.74992,2633.3,2633.2,0.37993]
[1729629186700,1.37,2633.4,2633.3,0.37991]
[1729629187204,1.37,2633.6,2633.3,5.1676]
[1729629187397,1.37,2633.6,2633.5,1.74988]
[1729629189302,1.74987,2633.6,2633.5,1.74988]
[1729629189503,1.74987,2633.6,2633.5,0.37988]
[1729629189903,1.74987,2633.6,2633.5,1.81508]
[1729629190309,1.37,2633.6,2633.5,1.81508]
[1729629190708,1.74987,2633.6,2633.5,1.81508]
[1729629192404,1.74987,2633.6,2633.5,1.4352]
[1729629193809,0.3799,2633.4,2633.3,0.37991]
[1729629194011,1.7499,2633.4,2633.3,0.9082]
[1729629194816,1.7499,2633.4,2633.3,1.28812]
[1729629195913,1.7499,2633.4,2633.3,0.9082]
[1729629196609,1.7499,2633.4,2633.3,1.28812]
[1729629200609,0.3799,2633.4,2633.3,1.28812]
[1729629201007,0.3799,2633.4,2633.3,2.65812]
[1729629201721,1.37,2633.5,2633.3,2.2782]
[1729629201912,1.7499,2633.5,2633.4,0.3799]
[1729629205526,0.3799,2633.4,2633.3,2.65811]
[1729629207319,1.7499,2633.5,2633.4,0.3799]
[1729629212026,0.3799,2633.5,2633.4,1.7499]
[1729629218219,0.3799,2633.5,2633.4,0.3799]
[1729629219529,0.3799,2633.4,2633.3,2.65811]
[1729629221333,0.3799,2633.5,2633.4,0.37989]
[1729629238446,1.37,2633.6,2633.3,2.2782]
[1729629238648,0.19158574,2633.7,2633.4,1.37]
[1729629238842,0.37987,2633.7,2633.6,0.37987]
[1729629239043,0.57048254,2633.7,2633.6,0.37987]
[1729629239250,0.57048254,2633.7,2633.6,0.78245978]
[1729629239750,1.94048254,2633.7,2633.6,0.78245978]
[1729629241042,1.94048254,2633.7,2633.6,0.4514]
[1729629242249,1.94048254,2633.7,2633.6,0.83127]
[1729629243042,1.94048254,2633.7,2633.6,0.4514]
[1729629243250,1.94048254,2633.7,2633.6,0.83127]
[1729629244954,28.03902,2633.9,2633.8,0.37985]
[1729629245151,28.03902,2633.9,2633.8,1.74985]
[1729629245152,13.74422,2633.9,2633.8,1.74985]
[1729629245454,4.95574,2633.9,2633.8,6.91665]
[1729629245654,3.2078,2635.0,2634.8,0.37969]
[1729629245946,3.2078,2635.0,2634.4,0.9494]
[1729629245947,3.39757594,2635.0,2634.9,1.74969]
[1729629247348,3.2078,2635.0,2634.9,5.54489]
[1729629247655,0.37959,2635.6,2635.2,0.37964]
[1729629247846,0.37959,2635.6,2635.5,1.37]
[1729629248442,5.047,2635.7,2635.5,1.37]
[1729629248643,3.677,2635.7,2635.6,1.37]
[1729629248854,5.047,2635.7,2635.6,1.37]
[1729629250154,5.42657,2635.7,2635.6,1.37]
[1729629250457,5.42657,2635.7,2635.5,1.37]
[1729629250651,1.37,2635.6,2635.5,1.37]
[1729629251050,1.74959,2635.6,2635.5,1.37]
[1729629251252,1.37,2635.6,2635.5,1.37]
[1729629252452,3.2078,2635.7,2635.5,1.37]
[1729629252653,3.2078,2635.7,2635.6,1.37]
[1729629254847,4.5778,2635.7,2635.6,1.37]
[1729629256248,3.2078,2635.7,2635.6,1.37]
[1729629257658,3.58737,2635.7,2635.6,1.37]
[1729629258159,3.2078,2635.7,2635.6,1.37]
[1729629258352,3.2078,2635.7,2635.6,1.74959]
[1729629258752,3.2078,2635.7,2635.6,1.37]
[1729629259765,3.2078,2635.7,2635.4,0.9517]
[1729629259959,1.37,2635.5,2635.0,3.2078]
[1729629260149,0.4298,2635.4,2635.3,1.37]
[1729629260362,0.80941,2635.4,2635.3,1.37]
[1729629261255,0.37963,2635.3,2635.2,1.37]
[1729629270169,0.37965,2635.2,2635.1,1.74966]
[1729629270467,0.37965,2635.2,2635.1,1.37]
[1729629271072,0.37966,2635.1,2635.0,3.2078]
[1729629271371,0.37966,2635.1,2635.0,4.5778]
[1729629273873,0.37966,2635.1,2635.0,4.95747]
[1729629274772,0.37966,2635.1,2635.0,1.74967]
[1729629282591,0.37966,2635.1,2634.9,0.37968]
[1729629282789,0.37967,2635.0,2634.9,0.37968]
[1729629283092,0.37967,2635.0,2634.9,1.74968]
[1729629284489,0.37967,2635.0,2634.9,1.37]
[1729629284694,0.37969,2634.9,2634.8,1.37]
[1729629284989,0.84749,2634.9,2634.8,1.37]
[1729629288293,0.37972,2634.7,2634.6,0.37971]
[1729629288898,0.37972,2634.7,2634.6,1.74971]
[1729629289195,0.37971,2634.8,2634.7,0.37971]
[1729629290193,0.37972,2634.7,2634.6,1.74972]
[1729629294302,3.23117,2635.1,2634.6,1.74972]
[1729629294303,0.912,2635.1,2634.6,1.37]
[1729629294606,0.37969,2634.9,2634.8,1.74969]
[1729629302709,0.37969,2634.9,2634.8,0.37969]
[1729629305211,0.912,2635.1,2634.6,1.37]
[1729629305415,0.37971,2634.8,2634.7,0.3797]
[1729629307206,0.37968,2635.0,2634.9,0.37968]
[1729629307408,0.37968,2635.0,2634.9,1.37]
[1729629310314,0.37968,2635.0,2634.9,1.74969]
[1729629312117,0.37968,2635.0,2634.9,2.26129]
[1729629320621,0.37967,2635.0,2634.9,2.26129]
[1729629320822,0.37966,2635.1,2635.0,0.37966]
[1729629323226,0.37967,2635.0,2634.9,2.26128]
[1729629336125,0.37967,2635.1,2635.0,0.37966]
[1729629349651,0.37967,2635.0,2634.9,0.89128]
[1729629349947,0.89527,2635.0,2634.9,0.89128]
[1729629356854,0.89527,2635.0,2634.9,0.89129]
[1729629360551,0.37969,2634.9,2634.6,0.37972]
[1729629360757,0.37969,2634.9,2634.6,0.87272]
[1729629360758,1.74972,2634.7,2634.6,0.87272]
[1729629361143,1.74972,2634.7,2634.6,2.24272]
[1729629361144,0.37972,2634.7,2634.6,2.24272]
[1729629365765,1.74972,2634.8,2634.7,0.37972]
[1729629366558,1.37,2634.8,2634.6,1.863]
[1729629366755,1.74971,2634.8,2634.7,0.37972]
[1729629369562,1.37,2634.8,2633.1,8.94371288]
[1729629369775,0.37981,2634.1,2633.9,0.85653]
[1729629370059,0.37981,2634.1,2633.9,1.8467]
[1729629370060,1.37,2634.1,2633.9,1.8467]
[1729629370262,0.19150149,2634.1,2634.0,1.37]
[1729629370464,1.84446,2634.4,2634.2,0.37978]
[1729629370763,1.18613321,2634.4,2634.3,1.74977]
[1729629370964,0.19013321,2634.4,2634.3,1.74977]
[1729629371465,3.2078,2634.5,2634.3,5.166]
[1729629371667,3.2078,2634.5,2634.4,1.74976]
[1729629372165,3.2078,2634.5,2634.4,5.54576]
[1729629372362,0.86091,2634.8,2634.7,1.76889559]
[1729629372557,1.55887896,2634.8,2634.7,1.76889559]
[1729629372757,0.18887896,2634.8,2634.7,1.76889559]
[1729629372957,5.4592,2634.9,2634.7,1.76889559]
[1729629373159,5.4592,2634.9,2634.8,1.8449]
[1729629373359,5.64589667,2634.9,2634.8,1.8449]
[1729629374959,2.43809667,2634.9,2634.8,1.8449]
[1729629375357,0.56639667,2634.9,2634.8,1.8449]
[1729629375562,0.4812,2635.1,2634.8,2.2246]
[1729629375764,0.37968,2635.0,2634.9,3.2078]
[1729629376076,0.37968,2635.0,2634.9,3.7294]
[1729629376262,0.37968,2635.0,2634.9,5.0994]
[1729629377060,1.74968,2635.0,2634.9,5.0994]
[1729629378174,1.74968,2635.0,2634.9,5.68681044]
[1729629378568,1.74968,2635.0,2634.9,8.89461044]
[1729629379968,1.74968,2635.0,2634.9,7.00301044]
[1729629380280,5.54488,2635.0,2634.9,3.79521044]
[1729629383466,0.3797,2634.8,2634.7,0.39889559]
[1729629383666,1.7497,2634.8,2634.7,0.39889559]
[1729629383873,5.5449,2634.8,2634.7,0.39889559]
[1729629384070,0.37974,2634.5,2634.4,3.2078]
[1729629384262,1.74974,2634.5,2634.4,3.2078]
[1729629386168,0.37977,2634.3,2634.2,2.43198]
[1729629386371,1.3159,2634.8,2634.7,2.04572853]
[1729629386569,3.0656,2634.8,2634.7,2.04572853]
[1729629386763,6.8608,2634.8,2634.7,2.04572853]
[1729629387672,7.36268243,2634.8,2634.7,2.04572853]
[1729629388971,3.56748243,2634.8,2634.7,2.04572853]
[1729629393275,2.19748243,2634.8,2634.7,2.04572853]
[1729629393476,3.56748243,2634.8,2634.7,2.04572853]
[1729629395474,3.0656,2634.8,2634.7,2.04572853]
[1729629398591,1.6956,2634.8,2634.7,2.04572853]
[1729629398880,3.0656,2634.8,2634.7,2.04572853]
[1729629399479,1.6956,2634.8,2634.7,2.04572853]
[1729629399668,3.0656,2634.8,2634.7,2.04572853]
[1729629410996,0.37974,2634.5,2634.4,0.7082]
[1729629411197,1.74974,2634.5,2634.4,0.7082]
[1729629414398,0.37974,2634.5,2634.4,2.0782]
[1729629420801,0.37974,2634.5,2634.4,2.45796]
[1729629420992,0.37974,2634.5,2634.4,2.0782]
[1729629421200,0.37974,2634.5,2634.4,2.45796]
[1729629422701,0.6489,2635.0,2634.4,7.2442]
[1729629422900,0.37967,2635.0,2634.9,1.37]
[1729629423111,1.74967,2635.0,2634.9,1.37]
[1729629424403,1.37,2635.0,2634.8,1.37]
[1729629424608,0.37969,2634.9,2634.8,1.37]
[1729629434509,1.74969,2634.9,2634.8,1.37]
[1729629434715,2.41539,2634.9,2634.8,1.37]
[1729629442911,2.0357,2634.9,2634.7,1.9551]
[1729629443117,1.7497,2634.8,2634.7,0.6584]
[1729629443315,3.0792,2634.8,2634.7,0.6584]
[1729629444716,0.37973,2634.6,2634.5,0.7024]
[1729629445118,1.74973,2634.6,2634.5,2.0724]
[1729629445417,0.37973,2634.6,2634.5,2.45214]
[1729629446823,0.37973,2634.6,2634.5,2.0724]
[1729629448015,1.08643,2634.6,2634.5,2.0724]
[1729629452017,2.45643,2634.6,2634.5,0.7024]